bitfinex-derivatives/quotes_ETHF0:USTF0_20240831
["timestamp","ask_amount","ask_price","bid_price","bid_amount"]
[1725133039348,0.3547,2497.6,2497.5,2.00246781]
[1725133039552,4.57211468,2497.6,2497.5,2.00246781]
[1725133039948,4.57211468,2497.6,2497.5,3.57598649]
[1725133042260,8.57611468,2497.6,2497.5,3.57598649]
[1725133042956,4.57211468,2497.6,2497.5,3.57598649]
[1725133043155,8.57611468,2497.6,2497.5,3.57598649]
[1725133043561,8.81632468,2497.6,2497.5,3.57598649]
[1725133044454,8.81632468,2497.6,2497.5,3.57599095]
[1725133045656,8.91645233,2497.6,2497.5,3.57599095]
[1725133047054,8.57611468,2497.6,2497.5,3.57599095]
[1725133047252,4.67224238,2497.6,2497.5,3.57599095]
[1725133047853,4.57211468,2497.6,2497.5,3.57599095]
[1725133048461,4.6722395,2497.6,2497.5,3.57599095]
[1725133050355,4.57211468,2497.6,2497.5,3.57599095]
[1725133050556,4.67223993,2497.6,2497.5,3.57599095]
[1725133051861,4.67223993,2497.6,2497.5,2.00247227]
[1725133052365,4.67223993,2497.6,2497.5,3.57664851]
[1725133053257,4.67223993,2497.6,2497.5,3.57683611]
[1725133053453,4.67223993,2497.6,2497.5,2.00247227]
[1725133053654,4.57211468,2497.6,2497.5,2.00247227]
[1725133054067,4.67224056,2497.6,2497.5,2.00247227]
[1725133054261,4.67224056,2497.6,2497.5,2.00252904]
[1725133054571,4.67224056,2497.6,2497.5,2.39522951]
[1725133054768,4.67224056,2497.6,2497.5,2.00252904]
[1725133056069,4.67224056,2497.6,2497.5,2.39520058]
[1725133056459,2.68184056,2497.6,2497.5,23.38966051]
[1725133056660,0.00261886,2498.1,2498.0,0.24018]
[1725133056968,0.00261886,2498.1,2498.0,9.45373676]
[1725133057269,0.00261886,2498.1,2498.0,13.84920258]
[1725133057464,0.00261886,2498.1,2498.0,16.46963814]
[1725133057660,0.00261886,2498.1,2498.0,17.09037862]
[1725133057862,0.00261886,2498.1,2498.0,17.09009489]
[1725133058260,0.00261886,2498.1,2498.0,16.07708859]
[1725133058563,0.00261886,2498.1,2498.0,11.70048987]
[1725133058767,0.00261886,2498.1,2498.0,11.70070977]
[1725133059356,0.00261886,2498.1,2498.0,5.20969764]
[1725133060565,0.00261886,2498.1,2498.0,2.00206144]
[1725133060566,4.64698083,2498.1,2498.0,2.00206144]
[1725133060772,4.64698083,2498.1,2497.9,1.570714]
[1725133061069,0.3754,2498.0,2497.9,1.570714]
[1725133061265,0.3754,2498.0,2497.9,3.57282758]
[1725133063668,0.3754,2498.0,2497.9,2.00211358]
[1725133064071,0.3754,2498.0,2497.8,1.570714]
[1725133064260,0.3754,2498.0,2497.9,3.57284834]
[1725133064462,0.3754,2498.0,2497.9,2.00213434]
[1725133064661,8.68636972,2498.0,2497.8,1.570714]
[1725133064862,4.68316972,2498.0,2497.8,1.570714]
[1725133070473,6.36334972,2498.0,2497.7,1.570714]
[1725133071165,6.36334972,2498.0,2497.6,4.778514]
[1725133071366,6.36334972,2498.0,2497.7,2.00229386]
[1725133071566,6.36334972,2498.0,2497.6,1.570714]
[1725133071773,6.36334972,2498.0,2497.7,3.57300703]
[1725133071973,6.36334972,2498.0,2497.7,1.570714]
[1725133073077,0.24019,2497.9,2497.7,1.570714]
[1725133073271,0.7336,2497.8,2497.7,1.570714]
[1725133073476,5.2273549,2497.8,2497.7,2.00228079]
[1725133074078,5.2273549,2497.8,2497.7,2.00227]
[1725133074588,5.2273549,2497.8,2497.7,3.572984]
[1725133074774,5.2273549,2497.8,2497.7,2.00227]
[1725133075277,5.2273549,2497.8,2497.7,3.572984]
[1725133075674,5.2273549,2497.8,2497.7,2.00227]
[1725133078780,5.2273549,2497.8,2497.7,2.00234713]
[1725133079484,5.2273549,2497.8,2497.7,3.57306113]
[1725133080389,5.2273549,2497.8,2497.7,3.81326113]
[1725133080576,5.2273549,2497.8,2497.7,7.81726113]
[1725133080778,0.7336,2497.8,2497.7,6.24654713]
[1725133081085,0.7336,2497.8,2497.7,8.34158663]
[1725133081386,0.7336,2497.8,2497.7,6.24654713]
[1725133082184,0.7336,2497.8,2497.7,8.34158663]
[1725133082381,0.7336,2497.8,2497.7,8.34135503]
[1725133082688,0.00261886,2498.1,2498.0,0.24018]
[1725133082894,0.00261886,2498.1,2498.0,2.24229553]
[1725133083189,0.00261886,2498.1,2498.0,8.33832104]
[1725133083388,0.00261886,2498.1,2498.0,8.73031586]
[1725133083582,0.00261886,2498.1,2498.0,12.73396877]
[1725133084785,0.00261886,2498.1,2498.0,10.64114326]
[1725133084981,0.00261886,2498.1,2498.0,19.85762515]
[1725133085189,8.86e-06,2498.1,2498.0,17.86154877]
[1725133086582,8.86e-06,2498.1,2498.0,16.84959844]
[1725133086883,0.3839,2498.6,2498.4,0.24013]
[1725133087088,0.3839,2498.6,2498.5,0.24013]
[1725133087484,4.99973278,2498.6,2498.5,0.24013]
[1725133096895,4.61583278,2498.6,2498.5,1.68013]
[1725133097099,0.00600384,2498.8,2498.7,0.24011]
[1725133097299,0.00600384,2498.8,2498.7,3.68145679]
[1725133097700,0.00600384,2498.8,2498.7,5.2465566]
[1725133097895,0.00600384,2498.8,2498.7,9.2489566]
[1725133098096,0.00600384,2498.8,2498.7,13.68385679]
[1725133098286,0.00600384,2498.8,2498.7,9.77327741]
[1725133098599,0.00600384,2498.8,2498.7,7.68385679]
[1725133098802,0.00600384,2498.8,2498.7,9.24735138]
[1725133099097,0.00600384,2498.8,2498.7,15.24735138]
[1725133099496,0.00600384,2498.8,2498.7,7.80735138]
[1725133099695,0.00600384,2498.8,2498.7,9.24735138]
[1725133100496,0.00600384,2498.8,2498.7,7.68361019]
[1725133101302,0.00600384,2498.8,2498.7,9.24735138]
[1725133101496,0.00600384,2498.8,2498.7,7.68361019]
[1725133101704,0.00600384,2498.8,2498.7,10.89141019]
[1725133102399,0.00600384,2498.8,2498.7,12.45515138]
[1725133102699,0.00600384,2498.8,2498.7,10.89141019]
[1725133102896,0.00600384,2498.8,2498.7,12.45515138]
[1725133103501,0.00600384,2498.8,2498.7,12.45514991]
[1725133105491,0.00600384,2498.8,2498.7,10.89140872]
[1725133106296,0.00600384,2498.8,2498.7,8.89031]
[1725133108585,0.00600384,2498.8,2498.7,5.68251]
[1725133109196,0.00600384,2498.8,2498.7,8.89031]
[1725133116602,0.00262444,2498.8,2498.7,8.89031]
[1725133118603,0.00262444,2498.8,2498.7,4.88791]
[1725133119898,0.38752444,2498.8,2498.7,4.88791]
[1725133122499,0.38752444,2498.8,2498.7,6.88918452]
[1725133124111,8.91740742,2498.8,2498.7,3.2078]
[1725133125105,8.91740742,2498.8,2498.7,3.44791]
[1725133125299,4.91500742,2498.8,2498.7,8.45296534]
[1725133125504,0.38752444,2498.8,2498.7,8.45296534]
[1725133127501,0.38752444,2498.8,2498.7,6.88922415]
[1725133128215,0.38752444,2498.8,2498.7,7.28139899]
[1725133128710,0.38752444,2498.8,2498.7,13.37331575]
[1725133129215,0.38752444,2498.8,2498.7,13.37337677]
[1725133130617,0.38752444,2498.8,2498.7,11.28395615]
[1725133132012,0.38752444,2498.8,2498.7,8.07615615]
[1725133132214,0.38752444,2498.8,2498.7,11.28395615]
[1725133132707,0.38752444,2498.8,2498.7,11.28391752]
[1725133133508,0.38752444,2498.8,2498.7,13.89575934]
[1725133133709,0.38752444,2498.8,2498.7,11.28391752]
[1725133134616,0.38752444,2498.8,2498.7,10.68795934]
[1725133134818,0.38752444,2498.8,2498.7,13.89575934]
[1725133135513,0.38752444,2498.8,2498.7,10.68795934]
[1725133135711,0.38752444,2498.8,2498.7,13.89575934]
[1725133135925,0.38752444,2498.8,2498.7,13.50352348]
[1725133136215,0.38752444,2498.8,2498.7,14.51637481]
[1725133137616,0.38752444,2498.8,2498.7,14.51646947]
[1725133139408,0.38752444,2498.8,2498.7,14.51627938]
[1725133140421,0.38752444,2498.8,2498.7,11.30847938]
[1725133141115,0.38752444,2498.8,2498.7,7.30592075]
[1725133141318,0.38752444,2498.8,2498.7,11.30853613]
[1725133141516,0.38752444,2498.8,2498.7,8.45658431]
[1725133141717,8.6449721,2498.8,2498.7,9.63829737]
[1725133144120,14.98514365,2498.8,2498.7,0.62708354]
[1725133144312,14.98514365,2498.8,2498.7,1.80841586]
[1725133145216,14.8850721,2498.8,2498.7,1.80841586]
[1725133146027,8.8850721,2498.8,2498.7,1.80841586]
[1725133146318,8.9851538,2498.8,2498.7,1.80841586]
[1725133147307,8.9851538,2498.8,2498.7,1.28337632]
[1725133147710,8.9851538,2498.8,2498.7,0.23490769]
[1725133147922,8.9851538,2498.8,2498.7,1.28340084]
[1725133148426,8.9851538,2498.8,2498.7,1.04849315]
[1725133151913,8.8850721,2498.8,2498.7,1.04849315]
[1725133152527,8.98515126,2498.8,2498.7,1.04849315]
[1725133153208,8.8850721,2498.8,2498.7,1.04849315]
[1725133153413,8.98514987,2498.8,2498.7,1.04849315]
[1725133153614,8.8850721,2498.8,2498.7,1.04849315]
[1725133153815,8.9851496,2498.8,2498.7,1.04849315]
[1725133154611,8.8850721,2498.8,2498.7,1.04849315]
[1725133155010,8.98514914,2498.8,2498.7,1.04849315]
[1725133155517,8.8850721,2498.8,2498.7,1.04849315]
[1725133156222,8.98514964,2498.8,2498.7,1.04849315]
[1725133161125,4.98274964,2498.8,2498.7,1.04849315]
[1725133163014,4.98274964,2498.8,2498.6,1.04849315]
[1725133163232,0.3643,2498.7,2498.6,1.04849315]
[1725133163522,5.22915595,2498.7,2498.6,1.04849315]
[1725133163728,0.24014,2498.4,2498.3,1.05449699]
[1725133163926,6.3402351,2498.4,2498.3,0.00600384]
[1725133164123,10.72414847,2498.4,2498.3,0.00600384]
[1725133165130,4.72414847,2498.4,2498.3,0.00600384]
[1725133165328,4.62405337,2498.4,2498.3,0.00600384]
[1725133166320,8.62645337,2498.4,2498.3,0.00600384]
[1725133166524,8.72655291,2498.4,2498.3,0.00600384]
[1725133166730,8.62645337,2498.4,2498.3,0.00600384]
[1725133173644,8.38631337,2498.4,2498.3,0.00600384]
[1725133173925,8.38631337,2498.4,2498.3,3.29639633]
[1725133173926,4.38391337,2498.4,2498.3,3.29639633]
[1725133174124,4.38391337,2498.4,2498.3,4.18921135]
[1725133174524,4.38391337,2498.4,2498.3,5.62921135]
[1725133174719,4.38391337,2498.4,2498.3,5.62906895]
[1725133176032,4.38391337,2498.4,2498.3,4.05556078]
[1725133176344,4.38391337,2498.4,2498.3,5.62435142]
[1725133176629,3.78343253,2498.4,2498.3,5.62418554]
[1725133176833,3.78343253,2498.4,2498.3,5.62415051]
[1725133177032,3.78343253,2498.4,2498.3,8.83195051]
[1725133177231,3.78343253,2498.4,2498.3,7.26336078]
[1725133177930,3.78343253,2498.4,2498.3,13.75612463]
[1725133178123,0.00262444,2498.8,2498.7,0.24011]
[1725133178323,0.00262444,2498.8,2498.7,2.72582789]
[1725133178530,0.00262444,2498.8,2498.7,4.43056695]
[1725133178732,0.00262444,2498.8,2498.7,4.81826695]
[1725133179627,0.00262444,2498.8,2498.7,7.30837252]
[1725133181042,0.00262444,2498.8,2498.7,14.51857252]
[1725133182235,0.00262444,2498.8,2498.7,14.51856948]
[1725133184334,0.00262444,2498.8,2498.7,12.51731308]
[1725133184525,0.00262444,2498.8,2498.7,11.64118869]
[1725133184732,0.00262444,2498.8,2498.7,11.2494217]
[1725133185150,0.00262444,2498.8,2498.7,12.81758554]
[1725133185536,0.00262444,2498.8,2498.7,9.60978554]
[1725133185840,0.00262444,2498.8,2498.7,12.81758554]
[1725133187042,0.00262444,2498.8,2498.7,9.60978554]
[1725133187338,0.00262444,2498.8,2498.7,12.81758554]
[1725133188031,0.00262444,2498.8,2498.7,8.81518554]
[1725133189332,0.00262444,2498.8,2498.7,8.81537017]
[1725133190530,0.00262444,2498.8,2498.7,5.60757017]
[1725133191044,0.00262444,2498.8,2498.7,8.81537017]
[1725133191440,0.00262444,2498.8,2498.7,9.20427017]
[1725133191737,0.00262444,2498.8,2498.7,9.99953899]
[1725133191934,0.00262444,2498.8,2498.7,13.20733899]
[1725133192656,0.00262444,2498.8,2498.7,9.99953899]
[1725133192945,0.00262444,2498.8,2498.7,13.20733899]
[1725133193835,0.00262444,2498.8,2498.7,9.99953899]
[1725133194035,0.00262444,2498.8,2498.7,13.20733899]
[1725133194344,0.00262444,2498.8,2498.7,13.2072468]
[1725133195835,0.00262444,2498.8,2498.7,14.12884238]
[1725133197049,0.00262444,2498.8,2498.7,11.63841414]
[1725133197438,0.00262444,2498.8,2498.7,13.73685023]
[1725133197842,0.00262444,2498.8,2498.7,11.63841414]
[1725133198050,0.00262444,2498.8,2498.7,13.73685023]
[1725133198246,0.00262444,2498.8,2498.7,11.63841414]
[1725133198947,0.00262444,2498.8,2498.7,12.46045014]
[1725133199347,0.00262444,2498.8,2498.7,8.45805014]
[1725133201653,0.00262444,2498.8,2498.7,4.72750709]
[1725133201846,0.00262444,2498.8,2498.7,3.04739709]
[1725133202038,8.44008974,2498.8,2498.7,1.04614548]
[1725133202238,8.44008974,2498.8,2498.6,1.56883845]
[1725133202239,8.68018974,2498.8,2498.6,1.04614548]
[1725133202451,1.143,2498.7,2498.6,1.04614548]
[1725133202752,5.64443256,2498.7,2498.6,1.28626548]
[1725133202951,5.64443256,2498.7,2498.6,1.04614548]
[1725133204952,5.88454256,2498.7,2498.6,1.04614548]
[1725133205155,5.88454256,2498.7,2498.6,3.04765283]
[1725133205453,5.64443256,2498.7,2498.6,3.04765283]
[1725133205657,5.64443256,2498.7,2498.6,1.04614548]
[1725133206045,5.64443256,2498.7,2498.6,3.047642]
[1725133207046,5.64443256,2498.7,2498.6,2.00149652]
[1725133207355,5.64443256,2498.7,2498.6,3.57027908]
[1725133207667,5.64443256,2498.7,2498.6,3.04820407]
[1725133207858,5.64443256,2498.7,2498.6,1.04676344]
[1725133209357,9.88694256,2498.7,2498.6,1.04676344]
[1725133209852,9.64683256,2498.7,2498.5,1.04676344]
[1725133210053,5.64443256,2498.7,2498.5,1.04676344]
[1725133210257,5.88454256,2498.7,2498.6,1.04676344]
[1725133210653,9.88694256,2498.7,2498.6,1.04676344]
[1725133211658,9.88694256,2498.7,2498.5,1.04676344]
[1725133211850,5.88454256,2498.7,2498.5,1.04676344]
[1725133213157,5.88454256,2498.7,2498.6,1.04676344]
[1725133213358,9.88694256,2498.7,2498.6,1.04676344]
[1725133217260,9.88694256,2498.7,2498.6,3.04836267]
[1725133218364,9.88694256,2498.7,2498.6,2.00159923]
[1725133218560,9.88694256,2498.7,2498.6,3.05007676]
[1725133219162,9.88694256,2498.7,2498.6,3.57043768]
[1725133223065,9.98702392,2498.7,2498.6,3.57043768]
[1725133224068,9.88694256,2498.7,2498.6,2.00159923]
[1725133224257,9.98702649,2498.7,2498.6,3.57043768]
[1725133224457,9.98702649,2498.7,2498.6,2.00159923]
[1725133224963,9.98702649,2498.7,2498.6,3.05044266]
[1725133225170,9.98702649,2498.7,2498.6,3.05044158]
[1725133225766,9.98702649,2498.7,2498.6,2.00159923]
[1725133225952,9.98702649,2498.7,2498.6,3.05041237]
[1725133226157,9.98702649,2498.7,2498.6,2.00159923]
[1725133226554,17.42702649,2498.7,2498.6,3.05040784]
[1725133226759,17.78719649,2498.7,2498.4,1.04885347]
[1725133227070,0.24014,2498.4,2498.3,1.054958]
[1725133227259,0.34022393,2498.4,2498.3,1.054958]
[1725133227455,8.63178561,2498.4,2498.3,3.05684307]
[1725133227657,15.93174056,2498.4,2498.0,1.04895416]
[1725133227857,1.44,2498.1,2497.9,1.04895416]
[1725133228062,0.24018,2497.9,2497.8,4.25675416]
[1725133228262,0.24018,2497.9,2497.8,3.2078]
[1725133228466,9.74550876,2497.9,2497.8,3.2078]
[1725133229867,9.50532876,2497.9,2497.8,3.2078]
[1725133230065,4.39532876,2497.9,2497.8,4.49694416]
[1725133230270,4.39532876,2497.9,2497.8,8.16939193]
[1725133230469,4.86218005,2498.3,2497.9,0.24018]
[1725133230668,4.14558483,2498.2,2497.9,1.28755785]
[1725133230872,0.371,2498.3,2497.9,1.28755785]
[1725133231170,4.36711272,2498.2,2498.0,1.68017]
[1725133231478,4.36711272,2498.3,2498.0,2.72754785]
[1725133231666,4.36711272,2498.3,2498.1,1.04737785]
[1725133231866,0.7438,2498.4,2498.1,1.04737785]
[1725133232066,4.51184699,2498.3,2498.1,1.04737785]
[1725133233371,4.51184699,2498.3,2498.0,2.72754785]
[1725133233567,4.75199699,2498.3,2498.0,1.04737785]
[1725133233870,0.3643,2498.2,2497.9,1.04737785]
[1725133234073,0.3643,2498.2,2497.8,5.92703845]
[1725133234074,1.68017,2498.1,2497.8,5.02527785]
[1725133234269,0.7144,2498.0,2497.8,5.02527785]
[1725133234774,4.85104238,2497.9,2497.8,3.2078]
[1725133235174,8.85424238,2497.9,2497.8,3.2078]
[1725133239578,9.23304238,2497.9,2497.8,3.2078]
[1725133240381,0.2402,2497.7,2497.6,0.00600384]
[1725133240578,1.6802,2497.7,2497.6,0.00600384]
[1725133240776,5.8858265,2497.7,2497.6,0.00600384]
[1725133242278,9.8898265,2497.7,2497.6,0.00600384]
[1725133243289,15.8898265,2497.7,2497.6,0.00600384]
[1725133245201,9.8898265,2497.7,2497.6,0.00600384]
[1725133260299,0.24027,2497.1,2496.9,0.3882]
[1725133260501,1.44,2497.0,2496.9,0.3882]
[1725133260800,5.65014638,2497.0,2496.9,0.3882]
[1725133263684,4.21014638,2497.0,2496.9,0.3882]
[1725133263888,4.21014638,2497.0,2496.9,0.62848]
[1725133264496,4.21014638,2497.0,2496.9,7.84108]
[1725133265093,0.00600384,2497.2,2497.1,0.24026]
[1725133265589,4.32564322,2497.2,2497.1,0.24026]
[1725133266597,4.32564322,2497.2,2497.1,4.24506]
[1725133269297,4.32564322,2497.2,2497.1,7.29503377]
[1725133269602,4.32564322,2497.2,2497.1,5.29243785]
[1725133269806,4.32564322,2497.2,2497.1,7.29502783]
[1725133271203,4.32564322,2497.2,2497.1,7.81648843]
[1725133272099,0.00600384,2497.2,2497.1,17.02428843]
[1725133272497,0.00600384,2497.2,2497.1,16.89544998]
[1725133272801,1.8008,2497.8,2497.7,0.2402]
[1725133273006,1.8008,2497.8,2497.2,1.49727501]
[1725133273210,5.6645798,2497.7,2497.6,0.24021]
[1725133273502,1.44,2497.7,2497.6,0.24021]
[1725133273708,5.6645798,2497.7,2497.6,0.24021]
[1725133274898,5.6645798,2497.7,2497.6,0.61071]
[1725133276100,5.6645798,2497.7,2497.6,1.32611]
[1725133277606,4.2245798,2497.7,2497.6,5.33011]
[1725133277802,4.2245798,2497.7,2497.6,8.53791]
[1725133278206,4.2245798,2497.7,2497.6,8.93055131]
[1725133279504,4.2245798,2497.7,2497.6,13.0292577]
[1725133280602,0.00600384,2497.9,2497.8,0.24019]
[1725133281006,4.39731982,2497.9,2497.8,0.24019]
[1725133284494,4.39731982,2497.9,2497.7,1.28820235]
[1725133284701,2.5812,2497.8,2497.7,1.28820235]
[1725133284906,2.5812,2497.8,2497.7,3.2905036]
[1725133285206,2.5812,2497.8,2497.7,7.2945036]
[1725133286204,2.5812,2497.8,2497.7,7.0543036]
[1725133286510,2.5812,2497.8,2497.7,7.2945036]
[1725133286711,2.5812,2497.8,2497.7,5.29220235]
[1725133286906,2.5812,2497.8,2497.7,7.29451506]
[1725133287306,2.5812,2497.8,2497.7,5.29220235]
[1725133288208,2.5812,2497.8,2497.7,5.05200235]
[1725133289409,11.40665243,2497.8,2497.6,1.04800235]
[1725133289602,1.44,2497.7,2497.6,1.04800235]
[1725133289799,1.44,2497.7,2497.6,3.05041577]
[1725133290001,6.02126243,2497.7,2497.6,3.05041577]
[1725133291904,6.26146243,2497.7,2497.6,1.04800235]
[1725133292101,6.26146243,2497.7,2497.5,1.04800235]
[1725133292307,0.24021,2497.6,2497.4,1.04800235]
[1725133292506,1.44,2497.5,2497.4,1.04800235]
[1725133292708,6.52374294,2497.5,2497.4,1.04800235]
[1725133292902,6.52374294,2497.5,2497.2,1.04800235]
[1725133293118,0.7474,2497.4,2497.2,1.04800235]
[1725133293619,4.49673943,2497.3,2497.2,1.04800235]
[1725133293818,4.49673943,2497.3,2497.2,3.05065927]
[1725133294411,5.93673943,2497.3,2497.2,1.04800235]
[1725133296906,9.94153943,2497.3,2497.2,1.04800235]
[1725133297203,9.94153943,2497.3,2497.1,1.04800235]
[1725133297204,10.18178943,2497.3,2497.1,1.04800235]
[1725133297408,0.3647,2497.2,2497.1,1.04800235]
[1725133297812,8.73894675,2497.2,2497.1,1.04800235]
[1725133298210,4.73414675,2497.2,2497.1,1.04800235]
[1725133301815,4.73414675,2497.2,2497.0,4.49607235]
[1725133303424,4.73414675,2497.2,2497.0,4.25580235]
[1725133304026,4.73414675,2497.2,2497.0,4.49607235]
[1725133306145,4.73414675,2497.2,2497.1,0.24026]
[1725133306442,4.73414675,2497.2,2497.1,1.64796235]
[1725133313045,4.73414675,2497.2,2497.1,1.28826235]
[1725133315039,4.73414675,2497.2,2497.1,1.04800235]
[1725133315246,4.73414675,2497.2,2497.0,1.28827235]
[1725133315546,1.44,2497.1,2497.0,0.24027]
[1725133315938,5.67765903,2497.1,2497.0,0.24027]
[1725133317850,5.67765903,2497.1,2496.9,1.28827235]
[1725133318053,0.7442,2497.0,2496.9,1.28827235]
[1725133318553,5.23919993,2497.0,2496.9,1.28827235]
[1725133319350,5.23919993,2497.0,2496.9,0.24027]
[1725133320353,5.23919993,2497.0,2496.9,1.28827235]
[1725133320563,4.49499993,2497.0,2496.9,1.28827235]
[1725133321055,3.89416949,2497.0,2496.9,5.29307235]
[1725133321355,3.89416949,2497.0,2496.9,7.81985134]
[1725133324256,3.89416949,2497.0,2496.9,11.02765134]
[1725133324763,3.89416949,2497.0,2496.9,7.81985134]
[1725133324955,3.89416949,2497.0,2496.9,11.02765134]
[1725133325767,3.89416949,2497.0,2496.9,9.45562821]
[1725133326258,3.89416949,2497.0,2496.9,11.94482873]
[1725133326466,3.89416949,2497.0,2496.9,9.8483655]
[1725133327064,3.89416949,2497.0,2496.9,11.94482873]
[1725133329266,3.89416949,2497.0,2496.9,15.95027906]
[1725133329656,3.89416949,2497.0,2496.9,11.94482609]
[1725133330762,3.89416949,2497.0,2496.9,11.94481757]
[1725133331062,3.89416949,2497.0,2496.9,15.95028206]
[1725133331474,3.89416949,2497.0,2496.9,12.74248206]
[1725133331661,3.89416949,2497.0,2496.9,15.95028206]
[1725133332260,3.89416949,2497.0,2496.9,13.85381883]
[1725133332462,3.89416949,2497.0,2496.9,14.47529965]
[1725133332962,3.89416949,2497.0,2496.9,14.47530038]
[1725133333164,3.89416949,2497.0,2496.9,14.47529466]
[1725133333362,3.89416949,2497.0,2496.9,17.0958737]
[1725133335865,3.89416949,2497.0,2496.9,17.09585021]
[1725133336269,3.89416949,2497.0,2496.9,16.08163973]
[1725133336471,3.89416949,2497.0,2496.9,17.09586336]
[1725133336766,3.89416949,2497.0,2496.9,11.08767267]
[1725133337070,3.89416949,2497.0,2496.9,14.47517969]
[1725133337261,3.89416949,2497.0,2496.9,17.10028931]
[1725133337462,3.89416949,2497.0,2496.9,17.10041273]
[1725133338366,3.89416949,2497.0,2496.9,14.47530311]
[1725133339063,3.89416949,2497.0,2496.9,11.26750311]
[1725133339260,3.89416949,2497.0,2496.9,14.47530311]
[1725133339567,3.89416949,2497.0,2496.9,13.46107948]
[1725133339773,3.89416949,2497.0,2496.9,14.47530914]
[1725133340672,3.89416949,2497.0,2496.9,14.47529344]
[1725133340973,3.89416949,2497.0,2496.9,11.26749344]
[1725133341167,3.89416949,2497.0,2496.9,14.47529344]
[1725133342872,3.89416949,2497.0,2496.9,13.46106378]
[1725133343073,3.89416949,2497.0,2496.9,11.26748384]
[1725133343573,3.89416949,2497.0,2496.9,14.47528384]
[1725133345572,3.89416949,2497.0,2496.9,14.47518593]
[1725133346264,3.89416949,2497.0,2496.9,13.46096587]
[1725133346476,3.89416949,2497.0,2496.9,14.47519052]
[1725133347278,3.89416949,2497.0,2496.9,10.47039052]
[1725133350173,3.25318949,2497.0,2496.9,27.08387678]
[1725133350477,0.3852,2497.4,2497.3,0.24024]
[1725133350674,0.3852,2497.4,2497.3,12.0820272]
[1725133350873,0.3852,2497.4,2497.3,14.47436052]
[1725133351380,0.3852,2497.4,2497.3,17.09945233]
[1725133351880,0.3852,2497.4,2497.3,14.47436052]
[1725133352382,0.3852,2497.4,2497.3,17.09944368]
[1725133353279,0.3852,2497.4,2497.3,14.47436052]
[1725133353480,0.3852,2497.4,2497.3,13.46013587]
[1725133353669,0.3852,2497.4,2497.3,14.47422899]
[1725133355178,0.3852,2497.4,2497.3,11.26642899]
[1725133355379,0.3852,2497.4,2497.3,11.26569444]
[1725133355583,0.3852,2497.4,2497.3,10.25160132]
[1725133355782,0.3852,2497.4,2497.3,11.26569542]
[1725133355988,0.3852,2497.4,2497.3,7.26169542]
[1725133357082,0.3852,2497.4,2497.3,9.36062563]
[1725133357276,0.3852,2497.4,2497.3,6.64028751]
[1725133357483,0.3852,2497.4,2497.3,8.34634288]
[1725133357685,0.3852,2497.4,2497.3,8.73903076]
[1725133357882,6.19727432,2497.4,2497.3,2.39514165]
[1725133358082,6.19727432,2497.4,2497.3,3.57664349]
[1725133358475,10.44150432,2497.4,2497.3,3.57664349]
[1725133358783,10.54164302,2497.4,2497.3,3.05192687]
[1725133360377,10.44150432,2497.4,2497.3,3.05222306]
[1725133360573,10.54164184,2497.4,2497.3,2.00274996]
[1725133360784,10.54164184,2497.4,2497.3,3.05226375]
[1725133361381,10.54164184,2497.4,2497.3,1.04951379]
[1725133362403,0.24024,2497.3,2497.2,1.04951379]
[1725133362700,4.86849583,2497.3,2497.2,1.04951379]
[1725133362890,8.87329583,2497.3,2497.2,1.04951379]
[1725133364803,14.63305583,2497.3,2497.0,1.04970253]
[1725133364998,0.24026,2497.1,2497.0,1.04970253]
[1725133365393,8.93483738,2497.1,2497.0,1.04970253]
[1725133365892,8.93483738,2497.1,2497.0,3.05266506]
[1725133366801,8.93483738,2497.1,2497.0,1.04970253]
[1725133367903,9.70293738,2497.1,2497.0,1.04970253]
[1725133369019,0.24027,2497.0,2496.9,1.04970253]
[1725133369198,0.24028,2496.9,2496.8,1.04970253]
[1725133369509,4.45372882,2496.9,2496.7,1.05570637]
[1725133369813,4.3535913,2496.9,2496.8,3.57712909]
[1725133370014,4.3535913,2496.9,2496.8,4.21019738]
[1725133370212,5.7935913,2496.9,2496.8,3.68527951]
[1725133370517,5.7935913,2496.9,2496.8,3.81741909]
[1725133371416,5.7935913,2496.9,2496.8,3.29233699]
[1725133371908,5.7935913,2496.9,2496.8,2.24322937]
[1725133372310,4.3535913,2496.9,2496.8,3.81741909]
[1725133374806,4.3535913,2496.9,2496.8,3.57712909]
[1725133375719,4.3535913,2496.9,2496.8,3.81741909]
[1725133377822,5.7935913,2496.9,2496.8,3.57712909]
[1725133378017,5.7935913,2496.9,2496.8,3.05169235]
[1725133378319,6.0338713,2496.9,2496.8,1.04875298]
[1725133378511,6.0338713,2496.9,2496.7,4.65375682]
[1725133378711,5.7935913,2496.9,2496.7,4.65375682]
[1725133381719,5.7935913,2496.9,2496.7,4.89405682]
[1725133382024,5.7935913,2496.9,2496.8,3.05169877]
[1725133382229,5.7935913,2496.9,2496.8,1.28904298]
[1725133382921,5.7935913,2496.9,2496.8,1.04875298]
[1725133383625,5.7935913,2496.9,2496.8,1.28904298]
[1725133383932,5.7935913,2496.9,2496.8,3.29200141]
[1725133384419,5.7935913,2496.9,2496.8,3.29198514]
[1725133385013,5.7935913,2496.9,2496.8,1.28904298]
[1725133385210,4.3535913,2496.9,2496.8,1.28904298]
[1725133385423,4.3535913,2496.9,2496.8,1.64284298]
[1725133385618,4.3535913,2496.9,2496.8,1.40255298]
[1725133387223,4.3535913,2496.9,2496.8,1.04875298]
[1725133388422,4.3535913,2496.9,2496.8,1.28904298]
[1725133392629,3.75272748,2496.9,2496.8,2.24321579]
[1725133392830,3.75272748,2496.9,2496.8,3.81740551]
[1725133396740,3.75272748,2496.9,2496.8,3.2915427]
[1725133396931,3.75272748,2496.9,2496.8,3.29162167]
[1725133397631,3.75272748,2496.9,2496.8,3.29162391]
[1725133397829,3.75272748,2496.9,2496.8,2.243297]
[1725133398423,3.75272748,2496.9,2496.8,3.81748672]
[1725133400040,0.3804,2497.1,2496.8,7.58199672]
[1725133400235,0.24021,2497.7,2497.3,0.24024]
[1725133400431,1.68021,2497.7,2497.4,1.82524245]
[1725133400742,1.68021,2497.7,2497.5,1.04874245]
[1725133400743,4.17906387,2497.6,2497.5,1.04874245]
[1725133400928,5.85927387,2497.6,2497.5,1.04874245]
[1725133401127,0.24022,2497.5,2497.4,1.04874245]
[1725133401325,0.3707,2497.5,2497.3,1.04874245]
[1725133401524,2.1738,2497.4,2497.3,1.57311367]
[1725133401732,2.1738,2497.4,2497.3,3.05152467]
[1725133402038,2.1738,2497.4,2497.3,1.04887566]
[1725133402539,10.96726101,2497.4,2497.3,1.04887566]
[1725133402743,0.24024,2497.3,2497.2,1.04887566]
[1725133403236,4.88961077,2497.3,2497.2,1.04887566]
[1725133403427,4.88961077,2497.3,2497.2,3.05167611]
[1725133404940,4.88961077,2497.3,2497.2,1.04887566]
[1725133405132,4.54923101,2497.3,2497.2,3.57590334]
[1725133407038,4.78947101,2497.3,2497.2,3.57590334]
[1725133407240,4.88960951,2497.3,2497.2,3.57588319]
[1725133408737,4.88960951,2497.3,2497.2,2.00276952]